[Event "Bangabandhu Premier Div League 2023-24"]
[Site "Dhaka"]
[Date "2024.02.02"]
[Round "2.7"]
[White "Narayanan, Srinath"]
[Black "Md Anisur Rahaman"]
[Result "1-0"]
[ECO "A39"]
[WhiteElo "2552"]
[BlackElo "1762"]
[Annotator "RC"]
[PlyCount "85"]
[EventDate "2024.02.01"]
[EventCountry "BAN"]
[SourceTitle "playchess.com"]
[Source "ChessBase"]
[SourceQuality "1"]
[TimeControl "40/5400+30:1800+30"]

1. Nf3 {[%emt 1:31:00]} Nf6 2. c4 c5 {[%emt 0:09:39]} 3. Nc3 {[%emt 0:00:00]} Nc6 {[%emt 0:00:25]} 4. d4 {[%emt 0:00:00]} cxd4 5. Nxd4 {[%emt 0:00:00]} a6 {[%emt 1:22:56]} 6. g3 {[%emt 0:02:30]} g6 {[%emt 0:00:30]} 7. Bg2 {[%emt 0:00:30]} Bg7 {[%emt 0:00:00]} 8. O-O {[%emt 0:00:00]} O-O {[%emt 0:00:00]} 9. e3 {[%emt 0:01:00]} e5 {[%emt 0:01:30]} 10. Nde2 {[%emt 0:00:30]} Re8 {[%emt 0:00:00]} 11. b3 {[%emt 0:00:30]} d6 {[%emt 0:00:00]} 12. Ba3 {[%emt 0:00:30]} Bf8 {[%emt 0:01:30]} 13. Qd2 {[%emt 0:00:30]} Qc7 {[%emt 0:00:00]} 14. Rfd1 {[%emt 0:00:00]} Rd8 {[%emt 0:01:00]} 15. Rac1 {[%emt 0:00:00]} Bg4 {[%emt 0:00:30]} 16. Nd5 {[%emt 0:01:30]} Nxd5 {[%emt 0:00:30]} 17. cxd5 {[%emt 0:00:30]} Qa5 {[%emt 0:00:30]} 18. dxc6 {[%emt 0:00:30]} Qxa3 {[%emt 0:00:00]} 19. c7 {[%emt 0:00:30]} Re8 {[%emt 0:01:00]} 20. Bxb7 {[%emt 0:00:30]} Rac8 {[%emt 0:00:30]} 21. f3 {[%emt 0:00:30]} Be6 {[%emt 0:00:30]} 22. Bxc8 {[%emt 0:00:30]} Rxc8 {[%emt 0:00:30]} 23. Nc3 {[%emt 0:00:30]} Qa5 {[%emt 0:00:00]} 24. Nd5 {[%emt 0:00:30]} Qb5 {[%emt 0:01:00]} 25. Qd3 {[%emt 0:00:30]} Qb7 {[%emt 0:00:30]} 26. Kg2 {[%emt 0:00:30]} Bxd5 {[%emt 0:00:00]} 27. Qxd5 {[%emt 0:00:30]} Rxc7 {[%emt 0:01:00]} 28. Qxb7 {[%emt 0:00:00]} Rxb7 {[%emt 0:00:30]} 29. Rd5 {[%emt 0:01:00]} Rb6 {[%emt 0:00:30]} 30. Kf2 {[%emt 0:00:30]} Kg7 {[%emt 0:00:30]} 31. Ke2 {[%emt 0:00:30]} Be7 {[%emt 0:00:00]} 32. Rc4 {[%emt 0:00:30]} f5 {[%emt 0:00:00]} 33. Ra5 {[%emt 0:00:30]} h5 {[%emt 0:00:00]} 34. Kd2 {[%emt 0:00:30]} d5 {[%emt 0:00:00]} 35. Rxd5 {[%emt 0:00:00]} Kf6 {[%emt 0:02:30]} 36. Ke2 {[%emt 0:01:00]} Bb4 {[%emt 0:00:30]} 37. Rd8 {[%emt 0:00:30]} a5 {[%emt 0:00:30]} 38. Rdc8 {[%emt 0:00:30]} Rd6 {[%emt 0:00:00]} 39. R4c6 {[%emt 0:00:00]} Ke6 {[%emt 0:01:00]} 40. Rxd6+ {[%emt 0:00:00]} Kxd6 {[%emt 0:00:00]} 41. Rg8 {[%emt 0:31:30]} e4 {[%emt 0:13:57]} 42. fxe4 {[%emt 0:00:30]} fxe4 {[%emt 0:01:19]} 43. Rxg6+ {[%emt 0:00:00]} 1-0

[Event "Bangabandhu Premier Div League 2023-24"]
[Site "Dhaka"]
[Date "2024.02.02"]
[Round "2.7"]
[White "Mayank Chakraborty"]
[Black "Rabby, Salim"]
[Result "0-1"]
[ECO "E11"]
[WhiteElo "2409"]
[BlackElo "1931"]
[Annotator "RC"]
[PlyCount "92"]
[EventDate "2024.02.01"]
[EventCountry "BAN"]
[SourceTitle "playchess.com"]
[Source "ChessBase"]
[SourceQuality "1"]
[TimeControl "40/5400+30:1800+30"]

1. d4 {[%emt 0:00:02]} Nf6 {[%emt 0:03:27]} 2. c4 {[%emt 0:00:02]} e6 {[%emt 0:00:10]} 3. Nf3 {[%emt 0:00:10]} Bb4+ {[%emt 0:01:40]} 4. Bd2 {[%emt 0:00:19]} Bxd2+ {[%emt 0:01:50]} 5. Qxd2 {[%emt 0:00:14]} O-O {[%emt 0:00:03]} 6. Nc3 {[%emt 0:00:21]} b6 {[%emt 0:00:06]} 7. e4 {[%emt 0:01:19]} Bb7 {[%emt 0:00:13]} 8. Bd3 {[%emt 0:02:29]} d6 {[%emt 0:00:30]} 9. O-O {[%emt 0:00:30]} Nbd7 10. Rfe1 {[%emt 0:02:07]} e5 {[%emt 0:00:26]} 11. Rad1 {[%emt 0:00:36]} Re8 12. Bc2 {[%emt 0:01:46]} a6 {[%emt 0:11:31]} 13. dxe5 {[%emt 0:01:52]} Nxe5 {[%emt 0:00:23]} 14. Nxe5 {[%emt 0:00:09]} dxe5 {[%emt 0:00:19]} 15. Qe3 {[%emt 0:03:06]} Qe7 {[%emt 0:00:21]} 16. Ba4 {[%emt 0:01:44]} Red8 {[%emt 0:00:22]} 17. Nd5 {[%emt 0:00:10]} Qd6 {[%emt 0:08:03]} 18. a3 {[%emt 0:05:51]} Rab8 {[%emt 0:10:17]} 19. b4 {[%emt 0:03:20]} Nxd5 {[%emt 0:04:02]} 20. exd5 {[%emt 0:00:18]} f6 {[%emt 0:01:01]} 21. h4 {[%emt 0:04:28]} Qf8 {[%emt 0:06:14]} 22. h5 {[%emt 0:01:45]} Qf7 {[%emt 0:01:18]} 23. h6 {[%emt 0:01:14]} g5 {[%emt 0:00:41]} 24. Bb3 {[%emt 0:02:24]} Kh8 {[%emt 0:00:21]} 25. Qc3 {[%emt 0:01:53]} Qe7 {[%emt 0:04:44]} 26. c5 {[%emt 0:03:19]} bxc5 {[%emt 0:03:57]} 27. bxc5 {[%emt 0:00:06]} Bc8 {[%emt 0:00:10]} 28. d6 {[%emt 0:05:56]} cxd6 {[%emt 0:01:31]} 29. cxd6 {[%emt 0:00:06]} Qe8 {[%emt 0:04:49]} 30. Bc2 {[%emt 0:03:18]} Bd7 {[%emt 0:01:54]} 31. Qd3 {[%emt 0:03:25]} Qf7 {[%emt 0:01:19]} 32. Qxa6 {[%emt 0:01:07]} Qh5 {[%emt 0:00:25]} 33. Rb1 {[%emt 0:02:55]} Ra8 {[%emt 0:01:48]} 34. Qd3 {[%emt 0:00:59]} Qxh6 {[%emt 0:00:08]} 35. Rb7 {[%emt 0:00:27]} Qg6 {[%emt 0:02:11]} 36. Qc3 {[%emt 0:06:47]} Qe8 {[%emt 0:00:40]} 37. Qf3 {[%emt 0:01:21]} Qf8 {[%emt 0:02:16]} 38. Bf5 {[%emt 0:03:29]} Bxf5 {[%emt 0:03:48]} 39. Qxf5 {[%emt 0:00:11]} Qh6 {[%emt 0:00:08]} 40. Re3 {[%emt 0:01:31]} Qg6 {[%emt 0:02:27]} 41. Rxh7+ {[%emt 0:30:47]} Kxh7 {[%emt 0:30:13]} 42. Qe6 {[%emt 0:04:33]} Kg7 {[%emt 0:01:19]} 43. Rc3 {[%emt 0:03:45]} Ra7 {[%emt 0:04:37]} 44. Rh3 {[%emt 0:04:03]} Rad7 {[%emt 0:01:36]} 45. Kh2 {[%emt 0:01:38]} Qf7 {[%emt 0:02:00]} 46. Qf5 {[%emt 0:00:10]} Rh8 {[%emt 0:00:18]} 0-1

[Event "Bangabandhu Premier Div League 2023-24"]
[Site "Dhaka"]
[Date "2024.02.02"]
[Round "2.8"]
[White "Arpan Das"]
[Black "Subrota, Biswas"]
[Result "1-0"]
[ECO "B11"]
[WhiteElo "2367"]
[BlackElo "2223"]
[Annotator "RC"]
[PlyCount "125"]
[EventDate "2024.02.01"]
[EventCountry "BAN"]
[SourceTitle "playchess.com"]
[Source "ChessBase"]
[SourceQuality "1"]
[TimeControl "40/5400+30:1800+30"]

1. e4 {[%emt 0:07:14]} c6 {[%emt 0:00:04]} 2. Nc3 {[%emt 0:00:19]} d5 {[%emt 0:00:02]} 3. Nf3 {[%emt 0:00:04]} dxe4 {[%emt 0:00:04]} 4. Nxe4 {[%emt 0:00:02]} Nf6 {[%emt 0:00:30]} 5. Qe2 {[%emt 0:00:15]} Nxe4 {[%emt 0:00:05]} 6. Qxe4 {[%emt 0:00:04]} Be6 {[%emt 0:00:24]} 7. b3 Nd7 8. Bb2 {[%emt 0:07:10]} Nf6 {[%emt 0:08:24]} 9. Qe2 {[%emt 0:05:43]} Bg4 {[%emt 0:05:31]} 10. g3 {[%emt 0:03:39]} g6 {[%emt 0:07:27]} 11. Bg2 {[%emt 0:19:03]} Bg7 {[%emt 0:00:05]} 12. O-O {[%emt 0:05:20]} O-O {[%emt 0:01:10]} 13. h3 {[%emt 0:00:01]} Bxf3 {[%emt 0:01:03]} 14. Bxf3 {[%emt 0:00:02]} Nd7 {[%emt 0:12:39]} 15. d4 {[%emt 0:07:52]} e5 {[%emt 0:00:17]} 16. Rad1 {[%emt 0:05:10]} Re8 {[%emt 0:03:02]} 17. dxe5 {[%emt 0:15:13]} Qc7 {[%emt 0:02:58]} 18. Bg2 {[%emt 0:05:32]} Nxe5 {[%emt 0:55:45]} 19. Bc1 {[%emt 0:00:33]} Nd7 {[%emt 0:00:00]} 20. Qd3 {[%emt 0:01:54]} Ne5 {[%emt 0:00:00]} 21. Qe2 {[%emt 0:00:20]} Nd7 {[%emt 0:00:00]} 22. Be3 {[%emt 0:12:11]} Rad8 {[%emt 0:00:00]} 23. Qc4 {[%emt 0:02:41]} Ne5 {[%emt 0:00:00]} 24. Qa4 {[%emt 0:00:54]} a5 {[%emt 0:00:00]} 25. Qf4 {[%emt 0:00:32]} Re6 {[%emt 0:00:00]} 26. Rd2 {[%emt 0:01:06]} Rxd2 {[%emt 0:00:00]} 27. Bxd2 {[%emt 0:00:01]} Qd8 {[%emt 0:00:00]} 28. Be3 {[%emt 0:00:55]} Rd6 {[%emt 0:00:00]} 29. Kh2 {[%emt 0:00:29]} h5 {[%emt 0:00:00]} 30. Re1 {[%emt 0:00:33]} Re6 {[%emt 0:00:00]} 31. a4 {[%emt 0:00:22]} Bf6 {[%emt 0:00:00]} 32. Kh1 {[%emt 0:00:37]} Rd6 {[%emt 0:00:00]} 33. Bc5 {[%emt 0:00:36]} Rd1 {[%emt 0:00:00]} 34. Qe4 {[%emt 0:00:23]} h4 {[%emt 0:00:00]} 35. Rxd1 {[%emt 0:00:32]} Qxd1+ {[%emt 0:00:00]} 36. Kh2 {[%emt 0:00:01]} hxg3+ {[%emt 0:00:40]} 37. fxg3 {[%emt 0:00:02]} Bg7 {[%emt 0:00:56]} 38. Bb6 {[%emt 0:01:29]} f5 {[%emt 0:00:47]} 39. Qe3 {[%emt 0:00:10]} Qxc2 {[%emt 0:01:34]} 40. Bxa5 {[%emt 0:00:42]} g5 {[%emt 0:00:14]} 41. Bc7 {[%emt 0:02:51]} Nf7 {[%emt 0:09:37]} 42. a5 {[%emt 0:02:59]} Bf6 {[%emt 0:01:35]} 43. b4 {[%emt 0:09:43]} Qd1 {[%emt 0:12:03]} 44. Qf3 {[%emt 0:01:41]} Qd7 {[%emt 0:02:40]} 45. Bb6 {[%emt 0:04:17]} Ne5 {[%emt 0:02:00]} 46. Qe3 {[%emt 0:02:32]} Ng6 {[%emt 0:01:25]} 47. Qb3+ {[%emt 0:02:44]} Kg7 {[%emt 0:01:10]} 48. b5 {[%emt 0:00:44]} f4 {[%emt 0:03:47]} 49. bxc6 {[%emt 0:00:12]} fxg3+ {[%emt 0:00:03]} 50. Kh1 {[%emt 0:05:27]} bxc6 {[%emt 0:00:23]} 51. a6 {[%emt 0:00:53]} Qd2 {[%emt 0:05:05]} 52. Qxg3 {[%emt 0:00:26]} Qc1+ {[%emt 0:00:19]} 53. Bg1 {[%emt 0:00:34]} Bd4 {[%emt 0:01:49]} 54. Be4 {[%emt 0:00:16]} Qa1 {[%emt 0:01:08]} 55. Bxg6 {[%emt 0:00:53]} Kxg6 {[%emt 0:00:39]} 56. Qd6+ {[%emt 0:00:02]} Kh5 {[%emt 0:00:31]} 57. Qxd4 {[%emt 0:00:09]} Qxa6 {[%emt 0:00:06]} 58. Qg4+ {[%emt 0:00:16]} Kg6 {[%emt 0:00:29]} 59. Qe6+ {[%emt 0:01:11]} Kh5 {[%emt 0:00:06]} 60. Qf7+ {[%emt 0:00:37]} Kh6 {[%emt 0:00:14]} 61. Qf6+ {[%emt 0:01:53]} Kh5 {[%emt 0:00:07]} 62. Qf7+ {[%emt 0:00:42]} Kh6 {[%emt 0:00:07]} 63. Bd4 {[%emt 0:00:11]} 1-0

[Event "Bangabandhu Premier Div League 2023-24"]
[Site "Dhaka"]
[Date "2024.02.02"]
[Round "2.8"]
[White "Mihir Lal, Das"]
[Black "Nayem, Haque"]
[Result "0-1"]
[ECO "D02"]
[WhiteElo "1936"]
[BlackElo "2092"]
[Annotator "NA RC"]
[PlyCount "103"]
[EventDate "2024.02.01"]
[EventCountry "BAN"]
[SourceTitle "playchess.com"]
[Source "ChessBase"]
[SourceQuality "1"]
[TimeControl "40/5400+30:1800+30"]

1. Nf3 {[%emt 0:03:06]} d5 {[%emt 0:00:07]} 2. g3 {[%emt 0:00:04]} Nf6 {[%emt 0:00:10]} 3. Bg2 {[%emt 0:00:02]} e6 {[%emt 0:00:50]} 4. O-O {[%emt 0:00:06]} Be7 {[%emt 0:00:12]} 5. b3 {[%emt 0:00:15]} O-O {[%emt 0:00:12]} 6. Bb2 c5 {[%emt 0:00:17]} 7. d4 {[%emt 0:02:12]} Nc6 {[%emt 0:01:17]} 8. Nbd2 {[%emt 1:28:45]} Bd7 {[%emt 0:13:52]} 9. c4 {[%emt 0:00:00]} cxd4 {[%emt 0:00:23]} 10. Nxd4 {[%emt 0:00:00]} Nxd4 {[%emt 0:00:19]} 11. Bxd4 {[%emt 0:00:00]} Bc6 {[%emt 0:00:32]} 12. Bb2 {[%emt 0:00:00]} Bb4 {[%emt 0:05:46]} 13. Rc1 {[%emt 0:02:30]} Qa5 {[%emt 0:22:44]} 14. Bxf6 {[%emt 0:00:00]} Bxd2 {[%emt 0:05:01]} 15. Rc2 {[%emt 0:00:00]} Bb4 {[%emt 0:12:38]} 16. cxd5 {[%emt 0:00:00]} exd5 {[%emt 0:06:27]} 17. Ba1 {[%emt 0:00:00]} Rfe8 {[%emt 0:03:21]} 18. Qd4 {[%emt 0:00:00]} Bf8 {[%emt 0:01:44]} 19. Rd1 {[%emt 0:00:00]} Rad8 {[%emt 0:00:11]} 20. Bc3 {[%emt 0:00:00]} Qc5 {[%emt 0:07:16]} 21. Qxc5 {[%emt 0:00:00]} Bxc5 {[%emt 0:00:32]} 22. Ba5 {[%emt 0:00:00]} b6 {[%emt 0:08:47]} 23. Rxc5 {[%emt 0:00:00]} bxc5 {[%emt 0:00:02]} 24. Bxd8 {[%emt 0:00:00]} Rxd8 {[%emt 0:00:01]} 25. Rc1 {[%emt 0:00:00]} Bb5 {[%emt 0:00:47]} 26. Rxc5 {[%emt 0:00:00]} Bxe2 {[%emt 0:00:34]} 27. Bxd5 {[%emt 0:00:00]} Kf8 {[%emt 0:01:06]} 28. f4 {[%emt 0:00:00]} Bg4 {[%emt 0:00:42]} 29. Kf2 {[%emt 0:00:00]} g6 {[%emt 0:09:10]} 30. Ra5 {[%emt 0:00:00]} Rd7 {[%emt 0:00:00]} 31. Ke3 {[%emt 0:00:00]} h5 {[%emt 0:00:00]} 32. Kd4 {[%emt 0:00:00]} Bf3 {[%emt 0:00:00]} 33. Kc4 {[%emt 0:00:00]} Rc7+ {[%emt 0:00:00]} 34. Rc5 {[%emt 0:00:00]} Bxd5+ {[%emt 0:00:00]} 35. Kxd5 {[%emt 0:11:00]} Rd7+ {[%emt 0:00:00]} 36. Kc4 {[%emt 0:00:00]} Rd2 {[%emt 0:00:00]} 37. Ra5 {[%emt 0:00:00]} Rxh2 {[%emt 0:00:00]} 38. Rxa7 {[%emt 0:00:00]} h4 {[%emt 0:00:25]} 39. gxh4 {[%emt 0:00:00]} Rxh4 {[%emt 0:00:01]} 40. b4 {[%emt 0:00:00]} Rxf4+ {[%emt 0:00:02]} 41. Kc5 {[%emt 0:05:26]} Rf5+ {[%emt 0:31:27]} 42. Kc6 {[%emt 0:00:15]} Rf2 {[%emt 0:04:35]} 43. b5 {[%emt 0:04:45]} Rc2+ {[%emt 0:00:00]} 44. Kd5 {[%emt 0:04:03]} Rb2 {[%emt 0:00:00]} 45. a4 {[%emt 0:00:00]} g5 {[%emt 0:00:00]} 46. Ke5 {[%emt 0:00:00]} g4 {[%emt 0:00:00]} 47. Kf6 {[%emt 0:00:00]} Rf2+ {[%emt 0:00:00]} 48. Ke5 {[%emt 0:22:01]} g3 {[%emt 0:00:00]} 49. b6 {[%emt 0:00:00]} g2 {[%emt 0:00:00]} 50. b7 {[%emt 0:00:00]} Rb2 {[%emt 0:00:00]} 51. Kf6 {[%emt 0:00:00]} Rb6+ {[%emt 0:00:00]} 52. Ke5 {[%emt 0:02:00]} 0-1

[Event "Bangabandhu Premier Div League 2023-24"]
[Site "Dhaka"]
[Date "2024.02.02"]
[Round "2.9"]
[White "Kushagra Mohan"]
[Black "Hossain, Enamul"]
[Result "1/2-1/2"]
[ECO "B32"]
[WhiteElo "2374"]
[BlackElo "2372"]
[Annotator "RC"]
[PlyCount "108"]
[EventDate "2024.02.01"]
[EventCountry "BAN"]
[SourceTitle "playchess.com"]
[Source "ChessBase"]
[SourceQuality "1"]
[TimeControl "40/5400+30:1800+30"]

1. e4 {[%emt 0:00:02]} c5 2. Nf3 Nc6 {[%emt 0:14:32]} 3. d4 {[%emt 0:00:07]} cxd4 {[%emt 0:00:13]} 4. Nxd4 {[%emt 0:00:03]} e5 {[%emt 0:00:14]} 5. Nb5 {[%emt 0:00:03]} d6 {[%emt 0:00:07]} 6. c4 {[%emt 0:00:03]} Be6 {[%emt 0:00:43]} 7. N1c3 {[%emt 0:00:18]} a6 {[%emt 0:00:13]} 8. Na3 {[%emt 0:00:04]} g6 {[%emt 0:00:17]} 9. Bd3 Bg7 {[%emt 0:00:51]} 10. Be3 {[%emt 0:02:01]} Nf6 {[%emt 0:00:35]} 11. f3 {[%emt 0:01:10]} O-O {[%emt 0:02:15]} 12. Nc2 {[%emt 0:01:05]} b5 {[%emt 0:03:23]} 13. cxb5 {[%emt 0:04:10]} axb5 {[%emt 0:00:41]} 14. Bxb5 {[%emt 0:00:05]} Ne7 {[%emt 0:00:22]} 15. O-O {[%emt 0:07:50]} d5 {[%emt 0:03:53]} 16. exd5 {[%emt 0:09:43]} Nexd5 {[%emt 0:04:42]} 17. Nxd5 {[%emt 0:01:30]} Nxd5 {[%emt 0:01:47]} 18. Bf2 {[%emt 0:06:59]} Qc7 {[%emt 0:07:22]} 19. a4 {[%emt 0:10:43]} Rfd8 {[%emt 0:03:28]} 20. Qc1 {[%emt 0:01:54]} Rac8 {[%emt 0:05:57]} 21. Ne3 {[%emt 0:00:57]} Qb7 {[%emt 0:03:58]} 22. Qb1 {[%emt 0:04:04]} Nxe3 {[%emt 0:04:32]} 23. Bxe3 {[%emt 0:00:07]} Bf5 {[%emt 0:00:10]} 24. Qe1 {[%emt 0:49:32]} Bd3 {[%emt 0:42:15]} 25. Bxd3 {[%emt 0:00:00]} Rxd3 {[%emt 0:00:00]} 26. Qe2 {[%emt 0:00:00]} e4 {[%emt 0:00:00]} 27. Bf2 {[%emt 0:00:00]} Qxb2 {[%emt 0:00:00]} 28. Qxe4 {[%emt 0:00:00]} Rd2 {[%emt 0:00:00]} 29. Rad1 {[%emt 0:00:00]} Re2 {[%emt 0:00:00]} 30. Qd5 {[%emt 0:00:00]} Bf6 {[%emt 0:00:00]} 31. Rb1 {[%emt 0:00:00]} Qc2 {[%emt 0:00:00]} 32. Rb7 {[%emt 0:00:00]} Qa2 {[%emt 0:00:00]} 33. Qxa2 {[%emt 0:00:00]} Rxa2 {[%emt 0:00:00]} 34. Rbb1 {[%emt 0:00:00]} Rcc2 {[%emt 0:00:00]} 35. Rbc1 {[%emt 0:00:00]} Rxf2 {[%emt 0:00:13]} 36. Rxf2 {[%emt 0:00:00]} Bd4 {[%emt 0:00:05]} 37. Rcf1 {[%emt 0:00:00]} h5 {[%emt 0:06:12]} 38. h4 {[%emt 0:00:00]} g5 {[%emt 0:00:00]} 39. g3 {[%emt 0:03:23]} gxh4 {[%emt 0:00:00]} 40. gxh4 {[%emt 0:00:22]} Rxa4 {[%emt 0:00:00]} 41. f4 {[%emt 0:05:17]} Kg7 {[%emt 0:00:00]} 42. Kg2 {[%emt 0:00:17]} Bxf2 {[%emt 0:00:00]} 43. Rxf2 {[%emt 0:00:02]} Kg6 {[%emt 0:00:00]} 44. Rf3 {[%emt 0:00:23]} Kf5 {[%emt 0:00:00]} 45. Kg3 {[%emt 0:01:18]} Ra1 {[%emt 0:00:00]} 46. Rb3 {[%emt 0:00:13]} Rg1+ {[%emt 0:01:07]} 47. Kf3 {[%emt 0:00:52]} Rg4 {[%emt 0:01:16]} 48. Rb5+ {[%emt 0:00:03]} Kg6 {[%emt 0:00:06]} 49. Rg5+ {[%emt 0:00:27]} Rxg5 {[%emt 0:00:06]} 50. hxg5 {[%emt 0:00:05]} f6 {[%emt 0:00:11]} 51. gxf6 {[%emt 0:00:04]} Kxf6 {[%emt 0:00:04]} 52. Kg3 {[%emt 0:00:03]} Kf5 {[%emt 0:00:06]} 53. Kh4 {[%emt 0:00:02]} Kxf4 {[%emt 0:00:06]} 54. Kxh5 {[%emt 0:00:04]} Ke5 {[%emt 0:35:28]} 1/2-1/2

[Event "Bangabandhu Premier Div League 2023-24"]
[Site "Dhaka"]
[Date "2024.02.02"]
[Round "2.10"]
[White "Chigaev, Maksim"]
[Black "Chowdhury, Sohel"]
[Result "1-0"]
[ECO "B13"]
[WhiteElo "2622"]
[BlackElo "1956"]
[Annotator "RC"]
[PlyCount "131"]
[EventDate "2024.02.01"]
[EventCountry "BAN"]
[SourceTitle "playchess.com"]
[Source "ChessBase"]
[SourceQuality "1"]
[TimeControl "40/5400+30:1800+30"]

1. e4 {[%emt 0:00:49]} c6 {[%emt 0:00:27]} 2. d4 {[%emt 0:00:19]} d5 {[%emt 0:00:11]} 3. exd5 {[%emt 0:00:32]} cxd5 {[%emt 0:00:19]} 4. Bd3 {[%emt 0:00:09]} Nc6 {[%emt 0:00:32]} 5. c3 {[%emt 0:00:19]} Qc7 {[%emt 0:00:15]} 6. h3 {[%emt 0:00:36]} Nf6 {[%emt 0:04:16]} 7. Nf3 {[%emt 0:00:23]} e6 {[%emt 0:01:20]} 8. O-O {[%emt 0:00:26]} Be7 {[%emt 0:03:07]} 9. Re1 O-O {[%emt 0:00:44]} 10. Nbd2 a6 {[%emt 0:06:59]} 11. Nf1 {[%emt 0:04:26]} b5 {[%emt 0:00:38]} 12. a3 {[%emt 0:00:10]} Bb7 {[%emt 0:02:56]} 13. Bg5 {[%emt 0:02:49]} Rfe8 {[%emt 0:06:20]} 14. N1h2 {[%emt 0:04:14]} Na5 {[%emt 0:03:31]} 15. Bxf6 {[%emt 0:05:59]} Bxf6 {[%emt 1:06:25]} 16. Ng4 {[%emt 0:00:26]} Be7 {[%emt 0:00:00]} 17. Qc2 {[%emt 1:17:23]} h6 {[%emt 0:00:00]} 18. Nfe5 {[%emt 0:00:00]} f5 {[%emt 0:00:00]} 19. Nh2 {[%emt 0:00:00]} Nc4 {[%emt 0:00:00]} 20. Nhf3 {[%emt 0:00:00]} Nd6 {[%emt 0:00:00]} 21. a4 {[%emt 0:00:00]} Bf6 {[%emt 0:00:00]} 22. Qb3 {[%emt 0:00:00]} bxa4 {[%emt 0:00:00]} 23. Qxa4 {[%emt 0:00:00]} Ne4 {[%emt 0:04:00]} 24. Qa5 {[%emt 0:00:00]} Qd6 {[%emt 0:00:00]} 25. Ng6 {[%emt 0:00:00]} Bd8 {[%emt 0:00:00]} 26. Qa3 {[%emt 0:00:00]} Bc7 {[%emt 0:00:00]} 27. Qxd6 {[%emt 0:00:00]} Bxd6 {[%emt 0:00:00]} 28. Nfe5 {[%emt 0:00:00]} Bxe5 {[%emt 0:00:00]} 29. Nxe5 {[%emt 0:00:00]} Red8 {[%emt 0:00:38]} 30. Ra3 {[%emt 0:00:00]} Rd6 {[%emt 0:00:30]} 31. Rea1 {[%emt 0:00:00]} Rb6 {[%emt 0:00:57]} 32. b4 {[%emt 0:00:00]} Rc8 {[%emt 0:00:55]} 33. Nd7 {[%emt 0:00:00]} Rbc6 {[%emt 0:00:45]} 34. Nc5 {[%emt 0:00:00]} Nxc5 {[%emt 0:00:35]} 35. bxc5 {[%emt 0:00:00]} Ra8 {[%emt 0:00:13]} 36. f4 {[%emt 0:00:00]} Kf7 {[%emt 0:00:24]} 37. Kf2 {[%emt 0:00:00]} Kf6 {[%emt 0:00:04]} 38. Rb1 {[%emt 0:00:00]} Bc8 {[%emt 0:00:04]} 39. Ke3 {[%emt 0:00:00]} g5 {[%emt 0:00:17]} 40. g3 {[%emt 0:00:00]} Ra7 {[%emt 0:01:47]} 41. Rb8 {[%emt 0:00:00]} gxf4+ {[%emt 0:30:20]} 42. gxf4 {[%emt 0:00:00]} Rg7 {[%emt 0:00:11]} 43. Kf2 {[%emt 0:00:00]} h5 {[%emt 0:00:00]} 44. Ra1 {[%emt 0:00:00]} h4 {[%emt 0:00:00]} 45. Rg1 {[%emt 0:00:00]} Rxg1 {[%emt 0:00:00]} 46. Kxg1 {[%emt 0:00:00]} Ke7 {[%emt 0:00:00]} 47. Kf2 {[%emt 0:00:00]} Kd8 {[%emt 0:00:00]} 48. Ke3 {[%emt 0:00:00]} Ke7 {[%emt 0:00:00]} 49. Kd2 {[%emt 0:00:00]} Kd8 {[%emt 0:00:00]} 50. Kc2 {[%emt 0:00:00]} Kd7 {[%emt 0:00:00]} 51. Rb1 {[%emt 0:00:00]} Rc7 {[%emt 0:00:00]} 52. Rg1 {[%emt 0:00:00]} Kc6 {[%emt 0:06:50]} 53. Rg6 {[%emt 0:00:00]} Kb7 {[%emt 0:00:00]} 54. Kb3 {[%emt 0:00:00]} Ka7 {[%emt 0:00:00]} 55. Ka3 {[%emt 0:00:00]} Rh7 {[%emt 0:00:00]} 56. Rg8 {[%emt 0:00:00]} Rc7 {[%emt 0:00:00]} 57. Kb4 {[%emt 0:00:00]} Rb7+ {[%emt 0:00:47]} 58. Ka5 {[%emt 0:00:00]} Rc7 {[%emt 0:00:11]} 59. Bc2 {[%emt 0:00:00]} Bd7 {[%emt 0:01:24]} 60. Rg7 {[%emt 0:00:00]} Kb8 {[%emt 0:00:23]} 61. Bd3 {[%emt 0:00:00]} e5 {[%emt 0:00:56]} 62. dxe5 {[%emt 0:00:00]} Rxc5+ {[%emt 0:00:15]} 63. Kb4 {[%emt 0:00:00]} Rc7 {[%emt 0:00:47]} 64. Bxa6 {[%emt 0:00:01]} Be6 {[%emt 0:00:30]} 65. Rxc7 {[%emt 0:00:09]} Kxc7 {[%emt 0:00:04]} 66. Kc5 {[%emt 0:00:06]} 1-0

[Event "Bangabandhu Premier Div League 2023-24"]
[Site "Dhaka"]
[Date "2024.02.02"]
[Round "2.11"]
[White "Sajidul, Haque"]
[Black "Iniyan, Pa"]
[Result "*"]
[ECO "A31"]
[WhiteElo "1922"]
[BlackElo "2515"]
[Annotator "RC"]
[PlyCount "98"]
[EventDate "2024.02.01"]
[EventCountry "BAN"]
[SourceTitle "playchess.com"]
[Source "ChessBase"]
[SourceQuality "1"]
[TimeControl "40/5400+30:1800+30"]

1. e4 {[%emt 0:00:14]} c5 {[%emt 0:01:29]} 2. Nf3 {[%emt 0:00:15]} d6 {[%emt 0:00:24]} 3. d4 {[%emt 0:00:14]} cxd4 {[%emt 0:00:14]} 4. Nxd4 {[%emt 0:00:08]} Nf6 {[%emt 0:00:19]} 5. f3 {[%emt 0:00:24]} e6 {[%emt 0:02:23]} 6. c4 {[%emt 0:00:15]} Be7 {[%emt 0:00:09]} 7. Nc3 {[%emt 0:00:13]} O-O {[%emt 0:00:14]} 8. Be3 {[%emt 0:00:35]} b6 {[%emt 0:01:39]} 9. Be2 {[%emt 0:00:50]} Bb7 {[%emt 0:00:20]} 10. O-O {[%emt 0:00:44]} Nc6 {[%emt 0:03:10]} 11. Qd2 Nxd4 {[%emt 0:07:32]} 12. Qxd4 {[%emt 0:04:41]} Nd7 {[%emt 0:01:38]} 13. Rad1 {[%emt 0:01:30]} Qb8 {[%emt 0:01:09]} 14. Kh1 {[%emt 0:11:07]} Rd8 {[%emt 0:00:16]} 15. Qd2 {[%emt 0:01:36]} a6 {[%emt 0:02:30]} 16. Rc1 {[%emt 0:02:31]} Bc6 {[%emt 0:01:25]} 17. b4 {[%emt 0:06:38]} Rc8 {[%emt 0:09:24]} 18. Rfd1 {[%emt 0:03:26]} Ne5 {[%emt 0:02:57]} 19. Qd4 {[%emt 0:01:33]} Be8 {[%emt 0:06:39]} 20. f4 {[%emt 0:02:42]} Ng6 {[%emt 0:04:07]} 21. a4 {[%emt 0:12:49]} Qb7 {[%emt 0:13:57]} 22. Rf1 {[%emt 0:09:08]} Rab8 {[%emt 0:03:16]} 23. a5 {[%emt 0:05:12]} bxa5 {[%emt 0:08:54]} 24. bxa5 {[%emt 0:00:03]} Qc6 {[%emt 0:01:42]} 25. Qd2 {[%emt 0:12:21]} Bd8 {[%emt 0:00:24]} 26. Ra1 {[%emt 0:06:39]} Bf6 {[%emt 0:01:11]} 27. Bb6 {[%emt 0:03:44]} Bxc3 {[%emt 0:01:38]} 28. Qxc3 {[%emt 0:00:03]} Qxe4 {[%emt 0:00:30]} 29. Bf3 {[%emt 0:03:44]} Qxc4 {[%emt 0:10:15]} 30. Qxc4 {[%emt 0:00:02]} Rxc4 {[%emt 0:00:12]} 31. Be2 {[%emt 0:00:34]} Rc2 {[%emt 0:00:08]} 32. Bxa6 {[%emt 0:01:35]} Bc6 {[%emt 0:02:35]} 33. Rfc1 {[%emt 0:00:25]} Bxg2+ {[%emt 0:01:05]} 34. Kg1 {[%emt 0:00:10]} Rxc1+ {[%emt 0:00:42]} 35. Rxc1 {[%emt 0:00:02]} Bd5 {[%emt 0:03:24]} 36. Bc7 {[%emt 0:01:06]} Rb2 {[%emt 0:00:50]} 37. Bxd6 {[%emt 0:00:40]} h5 {[%emt 0:00:53]} 38. Bd3 {[%emt 0:02:32]} Rg2+ {[%emt 0:03:39]} 39. Kf1 {[%emt 0:00:06]} Rxh2 {[%emt 0:00:33]} 40. Rc8+ {[%emt 0:01:18]} Kh7 {[%emt 0:00:08]} 41. Bxg6+ {[%emt 0:30:19]} fxg6 {[%emt 0:30:13]} 42. a6 {[%emt 0:05:22]} Ra2 {[%emt 0:01:44]} 43. Rc7 {[%emt 0:00:00]} h4 {[%emt 0:00:00]} 44. Rc3 {[%emt 0:00:00]} Kh6 {[%emt 0:00:00]} 45. Ba3 {[%emt 0:00:00]} Kh5 {[%emt 0:00:00]} 46. a7 {[%emt 0:00:00]} Kg4 {[%emt 0:00:00]} 47. Rd3 {[%emt 0:00:00]} Bg2+ {[%emt 0:00:00]} 48. Kg1 {[%emt 0:00:00]} h3 {[%emt 0:00:00]} 49. Rc3 {[%emt 0:00:00]} Bd5 {[%emt 0:00:00]} *